Workbook

Sheet Start
AD1: 0 | AE1: Start
H2: Modul 02 : Unternehmensgründung | AD2: =AD1+1 -> 1 | AE2: 01_Kapitalbedarf_AV1_A
AD3: =AD2+1 -> 2 | AE3: 01_Kapitalbedarf_AV2_A
M4: Zu dieser Datei: | AD4: 3 | AE4: 01_Kapitalbedarf_AV3_A
AD5: 4 | AE5: 01_Leasing_A
M6: Dies Datei enthält Übungsaufgaben zu folgenden Themen:
N8: - Ermittlung von Anschaffungskosten (bei Erwerb von Anlagegüter)
N9: - Bewertung von Anlagegütern zum Bilanzstichtag (Jahresabschluss)
N11: - Ermittlung von Herstellungskosten (bei Eigenherstellung von Anlagegütern)
N13: - Finanzierung des Erwerb eines Anlagegutes bei Barkauf, Kreditkauf und
N14: über Leasing
N16: Bei vollständiger Bearbeitung der Aufgaben kann die jeweilige Musterlösung
N17: eingeblendet werden.
F20: Tabellen-Auswahl
F21: 0

Sheet 01_Kapitalbedarf_AV1_A
C4: Kapitalbedarf Anlagevermögen:
C6: 1. Ermittlung von Anschaffungskosten: Sachverhalt
C7: Der Gründer Max Muster hat am | E7: =CONCATENATE("10. März " & YEAR(NOW())-1 ) -> 10. März 2020 | F7: im „Bundling“ eine neue Ladestation für E-Autos sowie
C8: eine Klimaanlage für die Werkstatt gekauft.
C9: Folgende Daten liegen hierzu vor: | I9: USt-Satz [%]
H10: netto | I10: 19 | J10: brutto
C11: Listenpreis der Ladestation (Hardware: 5 AC Ladepunkte) [EUR] | H11: 9000 | I11: =Preis_L_N*USt_Satz1/100 -> 1710 | J11: =Preis_L_N+I11 -> 10710
C12: Lieferer-Rabatt [%] | G12: 5
C13: Lieferer-Skonto (bei Zahlung innerhalb von 10 Tagen) [%] | G13: 2
C14: Transport- und Versicherungskosten {EUR] | H14: 800 | I14: =H14*USt_Satz1/100 -> 152 | J14: =H14+I14 -> 952
C15: Aufwendungen für Installation am Standort, Test {EUR] | H15: 3600 | I15: =H15*USt_Satz1/100 -> 684 | J15: =H15+I15 -> 4284
C17: Kaufpreis für Klimaanlage (kein Rabatt, nur Skonto) | H17: 1800 | I17: =H17*USt_Satz1/100 -> 342 | J17: =Preis_KA_N+I17 -> 2142
C18: Aufwendungen für Installation der Klimaanlage [EUR] | H18: 250 | I18: =H18*USt_Satz1/100 -> 47.5 | J18: =H18+I18 -> 297.5
C19: Beim Gründungs-Unternehmen angefallene Beschaffungsgemeinkosten [EUR]: | J19: 380
C21: Die Rechnung für die Ladestation und das Klimagerät wurde vom Unternehmer nachfolgend innerhalb der Skontofrist
C22: per Banküberweisung bezahlt. Die Rechnungen für die Nebenkosten wurden unmittelbar mit Bankscheck bezahlt.
C24: Weitere Daten:
D25: Nutzungsdauer der Ladestation [Jahre] | G25: 6
D26: Nutzungsdauer des Klimagerätes [Jahre] | G26: 10
C28: 2. Ermittlung von Anschaffungskosten: Aufgaben
C30: a) Es sind die Anschaffungskosten der oben aufgeführten Anlagegüter zu ermitteln!
C31: b) Es ist zu ermitteln, zu welchem Wert die Anlagegüter zum Bilanzstichtag (31.12. d. J.) zu bilanzieren wären!
C33: 3. Ermittlung von Anschaffungskosten: Ihre Lösung
C35: a) Anschaffungskosten der Ladestation gesamt
C37: Nr. | D37: Position | F37: Prozent | G37: Betrag
C38: 1 | D38: Kaufpreis
C39: =C38+1 -> 2
C40: =C39+1 -> 3
C41: 4
C42: 5
C43: 6
C44: 7
C45: 8
C46: =C45+1 -> 9 | D46: = Anschaffungskosten | G46: 2
C48: b) Anschaffungskosten der Klimaanlage
C50: Nr. | D50: Position | F50: Prozent | G50: Betrag
C51: 1 | D51: Kaufpreis (netto)
C52: =C51+1 -> 2
C53: =C52+1 -> 3
C54: 4
C55: 5 | D55: = Anschaffungskosten | G55: 2

Sheet 01_Kapitalbedarf_AV2_A
C4: Kapitalbedarf Anlagevermögen:
C6: Fortsetzung der Aufgabe "Anschaffungskosten":
C8: 4. Ermittlung des Wertansatzes für die Bilanzierung zum Bilanzstichtag
C10: Grundsatz:
C11: Anlagegüter sind stets zum Bilanzstichtag zu Anschaffungskosten, vermindert um Abschreibungen, zu aktivieren.
C12: Ermittlungen:
C14: a) Wert der Ladestation zum Bilanzstichtag (31.12. d. J.):
D16: Ermittelte Anschaffungskosten: | G16: EUR,
D17: Anschaffungsmonat: | E17: 3
D18: Nutzungsdauer | E18: =n_LadeSt -> 6 | G18: AHK [EUR]
D19: Abschreibungsbetrag (lineare Abschreibung) = | H19: = | J19: = | K19: 0 | L19: [EUR/a]
G20: ND [a]
D22: Monatsgenauer Abschreibungsbetrag im Anschaffungsjahr = | J22: [EUR/a]
D24: Bilanzwert "Ladestation" zum Bilanzstichtag 31.12. d. J. | I24: 0 | J24: [EUR]
C26: a) Wert der Klimaanlage zum Bilanzstichtag (31.12. d. J.):
D28: Ermittelte Anschaffungskosten: | G28: [EUR]
D29: Anschaffungsmonat: | E29: 3
D30: Nutzungsdauer | E30: ='01_Kapitalbedarf_AV1_A'!G26 -> 10
D31: Abschreibungsbetrag (lineare Abschreibung) = | H31: = | I31: 0 | J31: [EUR/a]
D34: Monatsgenauer Abschreibungsbetrag im Anschaffungsjahr = | J34: [EUR/a]
D36: Bilanzwert "Klimaanlage" zum Bilanzstichtag 31.12. d. J. | I36: 0 | J36: [EUR]

Sheet 01_Kapitalbedarf_AV1_L (hidden)
C4: Kapitalbedarf Anlagevermögen:
C6: 1. Sachverhalt
C7: Der Gründer Max Muster hat am | E7: =CONCATENATE("10. März " & YEAR(NOW())-1 ) -> 10. März 2020 | F7: im „Bundling“ eine neue Ladestation für E-Autos sowie
C8: eine Klimaanlage für die Werkstatt gekauft.
C9: Folgende Daten liegen hierzu vor: | I9: USt-Satz [%]
H10: netto | I10: 19 | J10: brutto
C11: Listenpreis der Ladestation (Hardware: 5 AC Ladepunkte) [EUR] | H11: 9000 | I11: =Preis_L_N*USt_Satz/100 -> 1710 | J11: =Preis_L_N+I11 -> 10710
C12: Lieferer-Rabatt [%] | G12: 5
C13: Lieferer-Skonto (bei Zahlung innerhalb von 10 Tagen) [%] | G13: 2
C14: Transport- und Versicherungskosten {EUR] | H14: 800 | I14: =TpVs1*USt_Satz/100 -> 152 | J14: =TpVs1+I14 -> 952
C15: Aufwendungen für Installation am Standort, Test {EUR] | H15: 3600 | I15: =Install1_N2*USt_Satz/100 -> 684 | J15: =Install1_N2+I15 -> 4284
C17: Kaufpreis für Klimaanlage (kein Rabatt, nur Skonto) | H17: 1800 | I17: =Preis_KA_N*USt_Satz/100 -> 342 | J17: =Preis_KA_N+I17 -> 2142
C18: Aufwendungen für Installation der Klimaanlage [EUR] | H18: 250 | I18: =H18*USt_Satz/100 -> 47.5 | J18: =H18+I18 -> 297.5
C19: Beim Gründungs-Unternehmen angefallene Beschaffungsgemeinkosten [EUR]: | J19: 380
C21: Die Rechnung für die Ladestation und das Klimagerät wurde vom Unternehmer nachfolgend innerhalb der Skontofrist
C22: per Banküberweisung bezahlt. Die Rechnungen für die Nebenkosten wurden unmittelbar mit Bankscheck bezahlt.
C24: Weitere Daten:
D25: Nutzungsdauer der Ladestation [Jahre] | G25: 6
D26: Nutzungsdauer des Klimagerätes [Jahre] | G26: 10
C28: 2. Aufgaben
C30: a) Es sind die Anschaffungskosten der oben aufgeführten Anlagegüter zu ermitteln!
C31: b) Es ist zu ermitteln, zu welchem Wert die Anlagegüter zum Bilanzstichtag (31.12. d. J.) zu bilanzieren wären!
C33: 3. Musterlösung:
C35: a) Anschaffungskosten der Ladestation gesamt
C37: Nr. | D37: Position | F37: Prozent | G37: Betrag | I37: Kommentar:
C38: 1 | D38: Listenpreis (netto) | G38: =Preis_L_N -> 9000 | I38: Ein Vermögensgegenstand (hier ein Anlagegut) ist nur mit dem ihm einzeln zurechen-baren Kosten (netto) zu akti-vieren. Rabatte, Skonti und andere Preisminderungen sind abzusetzen. Allgemeine Be-schaffungskosten sind nicht zurechenbar!
C39: =C38+1 -> 2 | D39: ./. Rabatt | F39: =L_Rab1 -> 5 | G39: =Preis_L*F39/100 -> 450
C40: =C39+1 -> 3 | D40: = Zieleinkaufspreis | G40: =Preis_L-G39 -> 8550
C41: 4 | D41: ./. Skonto | F41: =L_Skonto -> 2 | G41: =G40*F41/100 -> 171
C42: 5 | D42: = Bareinkaufspreis | G42: =G40-G41 -> 8379
C43: 6 | D43: + Transport- und Versicherungskosten | G43: =TpVs1 -> 800
C44: 7 | D44: + Kosten der Installation, Test | G44: =Install1_N2 -> 3600
C45: 8
C46: =C45+1 -> 9 | D46: = Anschaffungskosten | G46: =G42+G43+G44 -> 12779
C48: b) Anschaffungskosten der Klimaanlage
C50: Nr. | D50: Position | F50: Prozent | G50: Betrag | I50: Kommentar:
C51: 1 | D51: Kaufpreis (netto) | G51: =Preis_KA_N -> 1800 | I51: Die Klimaanlage ist ein selbstän-diger Vermögensgegenstand, der nach dem Grundsatz der Einzelbewertung auch einzeln zu aktivieren ist.
C52: =C51+1 -> 2 | D52: ./. Skonto | F52: =L_Skonto -> 2 | G52: =G51*F52/100 -> 36
C53: =C52+1 -> 3 | D53: = Bareinkaufspreis | G53: =G51-G52 -> 1764
C54: 4 | D54: + Installationskosten | G54: =Install_KA2 -> 250
C55: 5 | D55: = Anschaffungskosten | G55: =G53+G54 -> 2014

Sheet 01_Kapitalbedarf_AV2_L (hidden)
C4: Kapitalbedarf Anlagevermögen:
C7: Fortsetzung der Aufgabe "Anschaffungskosten":
C8: Ermittlung des Wertansatzes für die Bilanzierung zum Bilanzstichtag
C10: Grundsatz:
C11: Anlagegüter sind stets zum Bilanzstichtag zu Anschaffungskosten, vermindert um Abschreibungen, zu aktivieren.
C12: Ermittlungen:
C14: a) Wert der Ladestation zum Bilanzstichtag (31.12. d. J.):
D16: Ermittelte Anschaffungskosten: | F16: =AnschKo_Lade -> 12779 | G16: EUR,
D17: Anschaffungsmonat: | E17: 3
D18: Nutzungsdauer | E18: =n_LadeSt -> 6 | G18: AHK [EUR] | I18: =F16 -> 12779
D19: Abschreibungsbetrag (lineare Abschreibung) = | H19: = | J19: = | K19: =ROUND(I18/I20,0) -> 2130 | L19: [EUR/a]
G20: ND [a] | I20: =E18 -> 6
D22: Monatsgenauer Abschreibungsbetrag im Anschaffungsjahr = | I22: =Q1_Jahr*((13-mL)/12) -> 1775 | J22: [EUR/a]
D24: Bilanzwert "Ladestation" zum Bilanzstichtag 31.12. d. J. | I24: =I18-I22 -> 11004 | J24: [EUR]
C26: a) Wert der Klimaanlage zum Bilanzstichtag (31.12. d. J.):
D28: Ermittelte Anschaffungskosten: | F28: =AschKo_KA -> 2014 | G28: [EUR]
D29: Anschaffungsmonat: | E29: 3
D30: Nutzungsdauer | E30: =n_KA -> 10 | G30: =F28 -> 2014
D31: Abschreibungsbetrag (lineare Abschreibung) = | H31: = | I31: =ROUND(G30/G32,0) -> 201 | J31: [EUR/a]
G32: =E30 -> 10
D34: Monatsgenauer Abschreibungsbetrag im Anschaffungsjahr = | I34: =ROUND(Q2_Jahr*(13-E29)/12,0) -> 168 | J34: [EUR/a]
D36: Bilanzwert "Klimaanlage" zum Bilanzstichtag 31.12. d. J. | I36: =F28-I34 -> 1846 | J36: [EUR]

Sheet 01_Kapitalbedarf_AV3_A
C4: Kapitalbedarf Anlagevermögen:
C6: 5. Ermittlung von Herstellungskosten: Sachverhalt
C8: Der Unternehmensgründer Max Muster erstellt in Eigenleistung ein spezielles Regal für die
C9: Lagerung von Batterien.
C10: Folgende Angaben liegen hierzu vor:
C12: Nr. | D12: Position, Mengeneinheit | E12: Betrag
C13: 1 | D13: aufgewendete Arbeitszeit in der Fertigung [h] | E13: 150
C14: =C13+1 -> 2 | D14: Lohnkostensatz in der Fertigung [EUR/h] | E14: 28
C15: 3 | D15: Verbrauch an Roh-, Hilfs- und Betriebsstoffen [EUR] | E15: 2500
C16: 4 | D16: fremdbezogene Zulieferteile [EUR] | E16: 800
C17: 5 | D17: Zuschlagssatz für Materialgemeinkosten [%] | E17: 5
C18: 6 | D18: Zuschlagssatz für Fertigungsgemeinkosten [%] | E18: 90
C19: 7 | D19: Zuschlagssatz für zurechenbare Verwaltungsgemeinkosten [%] | E19: 80
C20: 8 | D20: Zuschlagssatz für Vertriebsgemeinkosten [%] | E20: 10
C22: 6. Herstellungskosten: Aufgaben
C24: a) | D24: Begründen Sie die Aktivierungsfähigkeit des Regals!
C25: b) | D25: Ermitteln Sie die aktivierungsfähigen Herstellungskosten!
C27: zu a):
C35: zu b):
C36: 1. | D36: Materialeinzelkosten MEK | E36: 0
C37: 2.
C38: 3.
C39: 4.
C40: 5. | D40: = Zwischensumme
C41: 6.
C42: 7. | D42: = aktivierungspflichtige Herstellungskosten | E42: 5

Sheet 01_Kapitalbedarf_AV3_L (hidden)
C4: Kapitalbedarf Anlagevermögen:
C6: 5. Ermittlung von Herstellungskosten: Sachverhalt
C8: Der Unternehmensgründer Max Muster erstellt in Eigenleistung ein spezielles Regal für die
C9: Lagerung von Batterien.
C10: Folgende Angaben liegen hierzu vor:
C12: Nr. | D12: Position, Mengeneinheit | E12: Betrag
C13: 1 | D13: aufgewendete Arbeitszeit in der Fertigung [h] | E13: 150
C14: =C13+1 -> 2 | D14: Lohnkostensatz in der Fertigung [EUR/h] | E14: 28
C15: 3 | D15: Verbrauch an Roh-, Hilfs- und Betriebsstoffen [EUR] | E15: 2500
C16: 4 | D16: fremdbezogene Zulieferteile [EUR] | E16: 800
C17: 5 | D17: Zuschlagssatz für Materialgemeinkosten [%] | E17: 5
C18: 6 | D18: Zuschlagssatz für Fertigungsgemeinkosten [%] | E18: 90
C19: 7 | D19: Zuschlagssatz für zurechenbare Verwaltungsgemeinkosten [%] | E19: 80
C20: 8 | D20: Zuschlagssatz für Vertriebsgemeinkosten [%] | E20: 10
C22: 6. Herstellungskosten: Aufgaben
C24: a) | D24: Begründung der Aktivierungsfähigkeit des Regals!
C25: b) | D25: Ermittlung der aktivierungsfähigen Herstellungskosten
C27: zu a): | D27: Bei dem angefertigten Regal handelt es sich um einen abnutzbaren, beweglichen Vermögens-
D28: gegenstand des Anlagevermögens, der nach § 247 Abs. 2 HGB zu behandeln ist.
D29: Die Aktivierung ist unter Sachanlagen (Position "Sonstige Betriebsausstattung") und die
D30: Zugangsbewertung gem. § 253 Abs. 2 HGB zu Herstellungskosten vorzunehmen.
D31: Grundlage für die Ermittlung der Herstellungskosten bilden die Bestimmungen in
D32: § 255 Abs. 2 HGB.
C34: zu b):
C35: 1. | D35: Materialeinzelkosten MEK (Pos. 3 und Pos. 4 der Datentabelle) | E35: =E15+E16 -> 3300
C36: 2. | D36: + Materialgemeinkosten (Zuschlagssatz nach Pos. 5, bezogen die MEK) | E36: =E35*E17/100 -> 165
C37: 3. | D37: + Fertigungseinzelkosten FEK (aus Pos. 1 und Pos. 2 der Datentabelle) | E37: =E13*E14 -> 4200
C38: 4. | D38: + Fertigungsgemeinkosten (Zuschlagssatz nach Pos, 6, bezogen auf FEK) | E38: =E37*E18/100 -> 3780
C39: 5. | D39: = Zwischensumme | E39: =SUM(E35:E38) -> 11445
C40: 6. | D40: + Verwaltungsgemeinkosten (Zuschlagssatz nach Pos. 7, bezogen auf die Zwischensumme) | E40: =E39*E19/100 -> 9156
C41: 7. | D41: = aktivierungspflichtige Herstellungskosten | E41: =E39+E40 -> 20601
C43: Anmerkung:
C44: In die Herstellungskosten dürfen gem. § 255 Abs. 2 HGB k e i n e Vertriebsgemeinkosten eingerechnet werden.

Sheet 01_Leasing_A
C4: Anlagengüter über Leasing
C6: Der Unternehmensgründer Max Muster beabsichtigt, einen neuen Lastkraftwagen
C7: zum Aufbau eines Fuhrparks zu beschaffen.
C8: Der Angebotspreis für den in Betracht gezogenen LKW -Typ beträgt | I8: 144000 | J8: EUR ( = Anschaffungskosten).
C9: Der LKW soll | E9: 6 | F9: Jahre genutzt werden.
C10: Der Unternehmer steht vor der Aufgabe, zu beurteilen, welche betriebswirtschaftlichen Auswirkungen
D12: a) der Kauf mit sofortiger Bezahlung aus Eigenmittel (Cash-flow)
D13: b) der Kauf des LKW mit einem entsprechenden Darlehen (ohne Eigenmittel-Anteil) bzw.
D14: c) ein Leasing dieses Fahrzeuges hat.
C15: Wichtigstes Beurteilungskriterium sei die kumulierte Liquiditätsbelastung (bzw. der Liquiditätsüberschuss)
C16: (ohne Diskontieren).
C17: Für die Lösung dieser Aufgabe stehen dem Unternehmer folgende weitere Daten zur Verfügung:
C19: Kreditsumme | H19: =AHK_0 -> 144000 | I19: EUR
C20: Zinssatz der Hausbank | H20: 5.5 | I20: % p.a.
C21: Tilgungsart des Darlehens | H21: Ratentilgung
C23: Grundmietzeit | H23: 4 | I23: Jahre
C24: Abschlussgebühr (bezogen auf die Anschaffungskosten) | H24: 10.5 | I24: %
C25: Leasing-Rate pro Monat (bezogen auf die Anschaffungskosten) | H25: 2.2 | I25: %
C26: Anschlussmiete pro Jahr | H26: 9600 | I26: EUR/a
C28: Kalkulierter Nutzen des LKW je Nutzungsjahr | H28: 32500 | I28: EUR/a
C30: Bewertungstabelle | I30: + Zeichen = Liquiditätsbelastung (Mittelbedarf)
C31: Ihre Lösung: | I31: - Zeichen = Überschuss (freie Mittel)
C33: Jahr | D33: Auszahlungen | G33: Liquiditätszufluss | I33: Liquiditätsbelastung
D34: Barkauf | E34: Kreditkauf | F34: Leasing | G34: Einzah-lungen | H34: Abschrei-bungen | I34: Barkauf | J34: Kreditkauf | K34: Leasing
C36: 1
C37: =C36+1 -> 2
C38: =C37+1 -> 3
C39: =C38+1 -> 4
C40: =C39+1 -> 5
C41: =C40+1 -> 6
C42: Summe
C44: Ihr Kommentar:

Sheet 01_Leasing_L (hidden)
C4: Anlagengüter über Leasing
C6: Der Unternehmensgründer Max Muster beabsichtigt, einen neuen Lastkraftwagen
C7: zum Aufbau eines Fuhrparks zu beschaffen.
C8: Der Angebotspreis für den in Betracht gezogenen LKW -Typ beträgt | I8: 144000 | J8: EUR ( = Anschaffungskosten).
C9: Der LKW soll | E9: 6 | F9: Jahre genutzt werden.
C10: Der Unternehmer steht vor der Aufgabe, zu beurteilen, welche betriebswirtschaftlichen Auswirkungen
D12: a) der Kauf mit sofortiger Bezahlung aus Eigenmittel (Cash-flow)
D13: b) der Kauf des LKW mit einem entsprechenden Darlehen (ohne Eigenmittel-Anteil) bzw.
D14: c) ein Leasing dieses Fahrzeuges hat.
C15: Wichtigstes Beurteilungskriterium sei die kumulierte Liquiditätsbelastung (bzw. der Liquiditätsüberschuss)
C16: (ohne Diskontieren).
C17: Für die Lösung dieser Aufgabe stehen dem Unternehmer folgende weitere Daten zur Verfügung:
C19: Kreditsumme | H19: =AHK_1 -> 144000 | I19: EUR
C20: Zinssatz der Hausbank | H20: 5.5 | I20: % p.a.
C21: Tilgungsart des Darlehens | H21: Ratentilgung
C23: Grundmietzeit | H23: 4 | I23: Jahre
C24: Abschlussgebühr (bezogen auf die Anschaffungskosten) | H24: 10.5 | I24: %
C25: Leasing-Rate pro Monat (bezogen auf die Anschaffungskosten) | H25: 2.2 | I25: %
C26: Anschlussmiete pro Jahr | H26: 9600 | I26: EUR/a
C28: Kalkulierter Nutzen des LKW je Nutzungsjahr | H28: 32500 | I28: EUR/a
C30: Bewertungstabelle | I30: + Zeichen = Liquiditätsbelastung (Mittelbedarf)
C31: Musterlösung: | I31: - Zeichen = Überschuss (freie Mittel)
C33: Jahr | D33: Auszahlungen | G33: Liquiditätszufluss | I33: Liquiditätsbelastung
D34: Barkauf | E34: Kreditkauf | F34: Leasing | G34: Einzah-lungen | H34: Abschrei-bungen | I34: Barkauf | J34: Kreditkauf | K34: Leasing
C36: 1 | D36: =Kredit -> 144000 | E36: =Kredit/Nzeit+Kredit*zins/100 -> 31920 | F36: =(AHK_1*Lrate/100)*12+AHK_1*AbGebuehr/100 -> 53136 | G36: =Nutzen -> 32500 | H36: =AHK_1/Nzeit -> 24000 | I36: =D36-G36-H36 -> 87500 | J36: =E36-G36-H36 -> -24580 | K36: =F36-G36 -> 20636
C37: =C36+1 -> 2 | D37: 0 | E37: =Kredit/Nzeit+(Kredit-Kredit*C36/Nzeit)*zins/100 -> 30600 | F37: =IF(C37<=Mzeit,(AHK_1*Lrate/100)*12,AnschMiete) -> 38016 | G37: 32500 | H37: 24000 | I37: =I36+D37-G37-H37 -> 31000 | J37: =J36+E37-G37-H37 -> -50480 | K37: =K36+F37-G37 -> 26152
C38: =C37+1 -> 3 | D38: 0 | E38: =Kredit/Nzeit+(Kredit-Kredit*C37/Nzeit)*zins/100 -> 29280 | F38: =IF(C38<=Mzeit,(AHK_1*Lrate/100)*12,AnschMiete) -> 38016 | G38: 32500 | H38: 24000 | I38: =I37+D38-G38-H38 -> -25500 | J38: =J37+E38-G38-H38 -> -77700 | K38: =K37+F38-G38 -> 31668
C39: =C38+1 -> 4 | D39: 0 | E39: =Kredit/Nzeit+(Kredit-Kredit*C38/Nzeit)*zins/100 -> 27960 | F39: =IF(C39<=Mzeit,(AHK_1*Lrate/100)*12,AnschMiete) -> 38016 | G39: 32500 | H39: 24000 | I39: =I38+D39-G39-H39 -> -82000 | J39: =J38+E39-G39-H39 -> -106240 | K39: =K38+F39-G39 -> 37184
C40: =C39+1 -> 5 | D40: 0 | E40: =Kredit/Nzeit+(Kredit-Kredit*C39/Nzeit)*zins/100 -> 26640 | F40: =IF(C40<=Mzeit,(AHK_1*Lrate/100)*12,AnschMiete) -> 9600 | G40: 32500 | H40: 24000 | I40: =I39+D40-G40-H40 -> -138500 | J40: =J39+E40-G40-H40 -> -136100 | K40: =K39+F40-G40 -> 14284
C41: =C40+1 -> 6 | D41: 0 | E41: =Kredit/Nzeit+(Kredit-Kredit*C40/Nzeit)*zins/100 -> 25320 | F41: =IF(C41<=Mzeit,(AHK_1*Lrate/100)*12,AnschMiete) -> 9600 | G41: 32500 | H41: 24000 | I41: =I40+D41-G41-H41 -> -195000 | J41: =J40+E41-G41-H41 -> -167280 | K41: =K40+F41-G41 -> -8616
C42: Summe | D42: =SUM(D36:D41) -> 144000 | E42: =SUM(E36:E41) -> 171720 | F42: =SUM(F36:F41) -> 186384
C44: Kommentar:
D46: Aus der Sicht der Liquiditätsbelastung ist der Kreditkauf die günstigste Variante, da immer die Summe aus
D47: Nutzen und Abschreibungen Jahr für Jahr größer als der jähliche Kapitaldienst ist.
D48: Aber: Nach 2 "Durstjahren" wird der Liquiditätsüberschuss beim Barkauf zunehmend besser und führt
D49: in der Endsumme zum größten Überschuss. Problem: Das Geld für den Barkauf muss da sein!
D50: Leasing ist - im Falle fehlender Mittel für den Barkauf bzw. ohne Kreditgewährung - ein gangbarer Ausweg.
D51: Aber: Leasing ist teuer! Und am Ende der Nutzungszeit geht das Leasinggut anderen Leasinggeber zurück!

Sheet Blanko1 (hidden)
